fUSD/lending_fUSD_20250312
["ID","MTS","AMOUNT","RATE_DAILY","PERIOD"]
[355969029,1741740635645,-676.12,9.998e-05,2]
[355969030,1741740635655,-510.31,9.998e-05,2]
[355969031,1741740635664,-500.0,9.998e-05,2]
[355969032,1741740635677,-206.42894347,9.998e-05,2]
[355969033,1741740635687,-500.0,9.998e-05,2]
[355969034,1741740635696,-500.0,9.998e-05,2]
[355969035,1741740635705,-564.24,9.998e-05,2]
[355969036,1741740635716,-594.70291182,9.998e-05,2]
[355969037,1741740635726,-747.37,9.998e-05,2]
[355969038,1741740635735,-151.0,9.998e-05,2]
[355969039,1741740635745,-562.64,9.998e-05,2]
[355969040,1741740635754,-151.0,9.998e-05,2]
[355969041,1741740635765,-500.0,9.998e-05,2]
[355969042,1741740635774,-727.18,9.998e-05,2]
[355969043,1741740635784,-775.37,9.998e-05,2]
[355969044,1741740635794,-500.0,9.998e-05,2]
[355969045,1741740635804,-564.05,9.998e-05,2]
[355969046,1741740635813,-500.0,9.998e-05,2]
[355969047,1741740635823,-500.0,9.998e-05,2]
[355969048,1741740635832,-1063.31,9.998e-05,2]
[355969049,1741740635842,-500.0,9.998e-05,2]
[355969050,1741740635852,-500.0,9.998e-05,2]
[355969051,1741740635861,-500.0,9.998e-05,2]
[355969052,1741740635871,-500.0,9.998e-05,2]
[355969053,1741740635880,-653.58,9.998e-05,2]
[355969054,1741740635889,-500.0,9.998e-05,2]
[355969055,1741740635898,-666.56,9.998e-05,2]
[355969056,1741740635908,-500.0,9.998e-05,2]
[355969057,1741740635917,-800.24,9.998e-05,2]
[355969058,1741740635928,-520.61,9.998e-05,2]
[355969059,1741740635938,-500.0,9.998e-05,2]
[355969060,1741740635947,-500.0,9.998e-05,2]
[355969061,1741740635957,-500.0,9.998e-05,2]
[355969062,1741740635967,-545.57,9.998e-05,2]
[355969063,1741740635976,-500.0,9.998e-05,2]
[355969064,1741740635985,-500.0,9.998e-05,2]
[355969065,1741740635995,-500.0,9.998e-05,2]
[355969066,1741740636004,-638.67,9.998e-05,2]
[355969067,1741740636014,-500.0,9.998e-05,2]
[355969068,1741740636023,-500.0,9.998e-05,2]
[355969069,1741740636033,-500.0,9.998e-05,2]
[355969070,1741740636042,-500.0,9.998e-05,2]
[355969071,1741740636051,-500.0,9.998e-05,2]
[355969072,1741740636061,-500.0,9.998e-05,2]
[355969073,1741740636070,-586.06,9.998e-05,2]
[355969074,1741740636079,-500.0,9.998e-05,2]
[355969075,1741740636089,-500.0,9.998e-05,2]
[355969076,1741740636098,-500.0,9.998e-05,2]
[355969077,1741740636107,-581.35,9.998e-05,2]
[355969078,1741740636117,-500.0,9.998e-05,2]
[355969079,1741740636126,-500.0,9.998e-05,2]
[355969080,1741740636136,-500.0,9.998e-05,2]
[355969081,1741740636146,-500.0,9.998e-05,2]
[355969082,1741740636156,-500.0,9.998e-05,2]
[355969083,1741740636165,-500.0,9.998e-05,2]
[355969084,1741740636176,-500.0,9.998e-05,2]
[355969085,1741740636188,-500.0,9.998e-05,2]
[355969086,1741740636197,-563.46,9.998e-05,2]
[355969087,1741740636206,-151.0,9.998e-05,2]
[355969088,1741740636216,-151.0,9.998e-05,2]
[355969089,1741740636227,-500.0,9.998e-05,2]
[355969090,1741740636237,-894.6,9.998e-05,2]
[355969091,1741740636247,-500.0,9.998e-05,2]
[355969092,1741740636257,-500.0,9.998e-05,2]
[355969093,1741740636267,-500.0,9.998e-05,2]
[355969094,1741740636277,-500.0,9.998e-05,2]
[355969095,1741740636286,-567.63,9.998e-05,2]
[355969096,1741740636296,-500.0,9.998e-05,2]
[355969097,1741740636305,-733.14,9.998e-05,2]
[355969098,1741740636315,-500.0,9.998e-05,2]
[355969099,1741740636324,-500.0,9.998e-05,2]
[355969100,1741740636333,-500.0,9.998e-05,2]
[355969101,1741740636343,-500.0,9.998e-05,2]
[355969102,1741740636352,-955.85,9.998e-05,2]
[355969103,1741740636362,-500.0,9.998e-05,2]
[355969104,1741740636371,-500.0,9.998e-05,2]
[355969105,1741740636381,-1000.0,9.998e-05,2]
[355969106,1741740636391,-1000.0,9.998e-05,2]
[355969107,1741740636400,-1000.0,9.998e-05,2]
[355969108,1741740636409,-1000.0,9.998e-05,2]
[355969109,1741740636419,-1000.0,9.998e-05,2]
[355969110,1741740636429,-1000.0,9.998e-05,2]
[355969111,1741740636438,-1000.0,9.998e-05,2]
[355969112,1741740636447,-1000.0,9.998e-05,2]
[355969113,1741740636457,-1000.0,9.998e-05,2]
[355969114,1741740636467,-1000.0,9.998e-05,2]
[355969115,1741740636476,-1000.0,9.998e-05,2]
[355969116,1741740636486,-1000.0,9.998e-05,2]
[355969117,1741740636495,-1000.0,9.998e-05,2]
[355969118,1741740636505,-1000.0,9.998e-05,2]
[355969119,1741740636514,-1000.0,9.998e-05,2]
[355969120,1741740636523,-1000.0,9.998e-05,2]
[355969121,1741740636533,-1000.0,9.998e-05,2]
[355969122,1741740636542,-1000.0,9.998e-05,2]
[355969123,1741740636551,-1000.0,9.998e-05,2]
[355969124,1741740636561,-1000.0,9.998e-05,2]
[355969125,1741740636570,-1000.0,9.998e-05,2]
[355969126,1741740636579,-1000.0,9.998e-05,2]
[355969127,1741740636589,-1000.0,9.998e-05,2]
[355969128,1741740636598,-1000.0,9.998e-05,2]
[355969129,1741740636608,-1000.0,9.998e-05,2]
[355969130,1741740636618,-1000.0,9.998e-05,2]
[355969131,1741740636627,-1000.0,9.998e-05,2]
[355969132,1741740636637,-1000.0,9.998e-05,2]
[355969133,1741740636647,-1000.0,9.998e-05,2]
[355969134,1741740636656,-1000.0,9.998e-05,2]
[355969135,1741740636665,-1000.0,9.998e-05,2]
[355969136,1741740636681,-1000.0,9.998e-05,2]
[355969137,1741740636691,-935.0,9.998e-05,2]
[355969138,1741740636701,-1000.0,9.998e-05,2]
[355969139,1741740636711,-1000.0,9.998e-05,2]
[355969140,1741740636720,-595.91,9.999e-05,2]
[355969141,1741740636729,-500.0,9.999e-05,2]
[355969142,1741740636738,-500.0,9.999e-05,2]
[355969143,1741740636748,-500.0,9.999e-05,2]
[355969144,1741740636758,-500.0,9.999e-05,2]
[355969145,1741740636768,-673.82,9.999e-05,2]
[355969146,1741740636777,-500.0,9.999e-05,2]
[355969147,1741740636786,-172.01801692,9.999e-05,2]
[355969148,1741740636795,-500.0,9.999e-05,2]
[355969149,1741740636805,-553.43,9.999e-05,2]
[355969150,1741740636814,-500.0,9.999e-05,2]
[355969151,1741740636823,-745.12,9.999e-05,2]
[355969152,1741740636833,-500.0,9.999e-05,2]
[355969153,1741740636843,-500.0,9.999e-05,2]
[355969154,1741740636852,-500.0,9.999e-05,2]
[355969155,1741740636862,-151.0,9.999e-05,2]
[355969156,1741740636871,-151.0,9.999e-05,2]
[355969157,1741740636881,-151.0,9.999e-05,2]
[355969158,1741740636891,-1339.71,9.999e-05,2]
[355969159,1741740636900,-151.0,9.999e-05,2]
[355969160,1741740636910,-151.0,9.999e-05,2]
[355969161,1741740636919,-1183.0,9.999e-05,2]
[355969162,1741740636929,-1007.0,0.0001,2]
[355969163,1741740636939,-13701.62179193,0.0001,2]
[355969164,1741740636948,-222564.63100027,0.0001,2]
[355969165,1741740637500,-2927.80998168,0.0001,2]
[355969166,1741740637511,-482.14401582,0.0001,2]
[355969168,1741740637963,-1992.88489637,0.0001,2]
[355969174,1741740640039,-650.49,9.996e-05,2]
[355969175,1741740640050,-500.0,9.997e-05,2]
[355969176,1741740640060,-51139.51,0.0001,2]
[355969177,1741740640256,-1995.48288896,0.0001,2]
[355969178,1741740640268,-28369.9257157,0.0001,2]
[355969179,1741740640311,-2612.30408965,0.0001,2]
[355969183,1741740642854,-533.71,9.997e-05,2]
[355969184,1741740642864,-500.0,9.997e-05,2]
[355969185,1741740642875,-7645.99,0.0001,2]
[355969186,1741740642886,-869.30755836,0.0001,2]
[355969187,1741740642897,-1759.35999998,0.0001,2]
[355969188,1741740643067,-585.29,9.996e-05,2]
[355969189,1741740643077,-488.74080141,0.0001,2]
[355969192,1741740643443,-90954.02388318,0.0001,2]
[355969193,1741740643452,-181633.43717738,0.0001,2]
[355969194,1741740643463,-1000.0,0.0001,2]
[355969196,1741740645830,-901.78,9.996e-05,2]
[355969197,1741740645840,-288.22,9.997e-05,2]
[355969200,1741740851709,500.0,0.0002,120]
[355969201,1741740918213,-189.2898887,9e-05,2]
[355969202,1741740970197,1204.19,8.219e-05,2]
[355969203,1741741024731,-243.8401113,9e-05,2]
[355969204,1741741540594,2655.51,0.00020011,120]
[355969219,1741741832007,-262.0,8.988e-05,2]
[355969220,1741741832017,-466.87,9e-05,2]
[355969221,1741741832027,-1054.66,9.05e-05,2]
[355969222,1741741832036,-1000.0,9.067e-05,2]
[355969223,1741741832046,-150.0,9.562e-05,7]
[355969224,1741741832055,-195.00229707,9.562e-05,2]
[355969225,1741741832066,-415.272,9.732e-05,2]
[355969226,1741741832075,-121.33971981,9.732e-05,2]
[355969227,1741741832126,-1589.681725,9.732e-05,2]
[355969228,1741741832137,-648.49355519,9.732e-05,2]
[355969229,1741741832147,-150.0,9.732e-05,2]
[355969230,1741741832156,-876.3,9.732e-05,2]
[355969231,1741741832167,-79.65507875,9.782e-05,2]
[355969232,1741741832185,-70.34492125,9.782e-05,2]
[355969233,1741741832196,-219.16600162,9.8e-05,2]
[355969234,1741741832206,-610.67323393,9.872e-05,2]
[355969235,1741741832295,-7501.35151317,9.872e-05,2]
[355969285,1741741837921,-11824.1152529,9.872e-05,2]
[355969286,1741741837931,-9198.2959,9.873e-05,2]
[355969287,1741741837942,-1000.0,9.873e-05,2]
[355969288,1741741837951,-150.0,9.885e-05,2]
[355969289,1741741837961,-150.0,9.895e-05,2]
[355969290,1741741837970,-583.13,9.896e-05,2]
[355969291,1741741837980,-7224.2166,9.896e-05,2]
[355969292,1741741837990,-5000.0,9.899e-05,2]
[355969293,1741741838000,-368.0,9.9e-05,2]
[355969294,1741741838009,-232.0,9.9e-05,2]
[355969295,1741741838019,-368.0,9.9e-05,2]
[355969296,1741741838029,-750.0,9.9e-05,2]
[355969297,1741741838038,-3867.64551846,9.901e-05,2]
[355969298,1741741838048,-870.88944643,9.902e-05,2]
[355969299,1741741838074,-299.25,9.902e-05,2]
[355969300,1741741838100,-2697.50607203,9.902e-05,2]
[355969301,1741741838111,-3867.64551846,9.903e-05,2]
[355969302,1741741838120,-2144.224,9.927e-05,2]
[355969303,1741741838130,-178.937,9.927e-05,2]
[355969304,1741741838139,-150.0,9.927e-05,2]
[355969305,1741741838149,-1000.0,9.972e-05,2]
[355969306,1741741838159,-184.1208826,9.973e-05,2]
[355969307,1741741838169,-501.72082279,9.973e-05,2]
[355969308,1741741838179,-511.62,9.98e-05,2]
[355969309,1741741838189,-570.87,9.996e-05,2]
[355969310,1741741838199,-500.0,9.996e-05,2]
[355969311,1741741838208,-500.0,9.996e-05,2]
[355969312,1741741838218,-500.0,9.996e-05,2]
[355969313,1741741838227,-500.0,9.996e-05,2]
[355969314,1741741838236,-500.0,9.996e-05,2]
[355969315,1741741838246,-500.0,9.996e-05,2]
[355969316,1741741838255,-188.10845719,9.996e-05,2]
[355969317,1741741838265,-500.0,9.996e-05,2]
[355969318,1741741838275,-500.0,9.996e-05,2]
[355969319,1741741838285,-500.0,9.996e-05,2]
[355969320,1741741838295,-500.0,9.996e-05,2]
[355969321,1741741838304,-500.0,9.996e-05,2]
[355969322,1741741838315,-241.00028678,9.996e-05,2]
[355969323,1741741838330,-500.0,9.996e-05,2]
[355969324,1741741838339,-500.0,9.996e-05,2]
[355969325,1741741838349,-500.0,9.996e-05,2]
[355969326,1741741838359,-368.18874456,9.996e-05,2]
[355969327,1741741838369,-500.0,9.996e-05,2]
[355969328,1741741838378,-500.0,9.996e-05,2]
[355969329,1741741838387,-602.59,9.996e-05,2]
[355969330,1741741838397,-604.42,9.996e-05,2]
[355969331,1741741838407,-529.48681983,9.996e-05,2]
[355969332,1741741838417,-647.95,9.996e-05,2]
[355969333,1741741838426,-775.76,9.996e-05,2]
[355969334,1741741838435,-500.0,9.996e-05,2]
[355969335,1741741838445,-500.0,9.996e-05,7]
[355969336,1741741838454,-500.0,9.996e-05,2]
[355969337,1741741838463,-539.2,9.996e-05,2]
[355969338,1741741838472,-696.88,9.996e-05,2]
[355969339,1741741838482,-540.73,9.996e-05,2]
[355969340,1741741838491,-500.0,9.996e-05,2]
[355969341,1741741838501,-500.0,9.996e-05,2]
[355969342,1741741838510,-500.0,9.996e-05,2]
[355969343,1741741838520,-500.0,9.996e-05,2]
[355969344,1741741838529,-500.0,9.996e-05,2]
[355969345,1741741838538,-500.0,9.996e-05,2]
[355969346,1741741838547,-626.34,9.996e-05,2]
[355969347,1741741838557,-500.0,9.996e-05,2]
[355969348,1741741838566,-500.0,9.996e-05,2]
[355969349,1741741838580,-500.0,9.996e-05,2]
[355969350,1741741838590,-720.63,9.996e-05,2]
[355969351,1741741838599,-500.0,9.996e-05,2]
[355969352,1741741838609,-500.0,9.996e-05,2]
[355969353,1741741838619,-500.0,9.996e-05,2]
[355969354,1741741838628,-612.06,9.996e-05,2]
[355969355,1741741838638,-500.0,9.996e-05,2]
[355969356,1741741838647,-500.0,9.996e-05,2]
[355969357,1741741838656,-500.0,9.996e-05,2]
[355969358,1741741838665,-500.0,9.996e-05,2]
[355969359,1741741838675,-500.0,9.996e-05,2]
[355969360,1741741838684,-673.14,9.996e-05,2]
[355969361,1741741838693,-500.0,9.996e-05,2]
[355969362,1741741838702,-500.0,9.996e-05,2]
[355969363,1741741838711,-500.0,9.996e-05,2]
[355969364,1741741838720,-500.0,9.996e-05,2]
[355969365,1741741838729,-561.64,9.996e-05,2]
[355969366,1741741838739,-500.0,9.996e-05,2]
[355969367,1741741838748,-346.76375687,9.996e-05,2]
[355969368,1741741838757,-500.0,9.996e-05,2]
[355969369,1741741838766,-500.0,9.996e-05,2]
[355969370,1741741838775,-500.0,9.996e-05,2]
[355969371,1741741838784,-500.0,9.996e-05,2]
[355969372,1741741838793,-500.0,9.996e-05,2]
[355969373,1741741838803,-500.0,9.996e-05,2]
[355969374,1741741838812,-594.56,9.996e-05,2]
[355969375,1741741838824,-500.0,9.996e-05,2]
[355969376,1741741838834,-500.0,9.996e-05,2]
[355969377,1741741838843,-500.0,9.996e-05,2]
[355969378,1741741838853,-500.0,9.996e-05,2]
[355969379,1741741838862,-500.0,9.996e-05,2]
[355969380,1741741838871,-500.0,9.996e-05,2]
[355969381,1741741838881,-500.0,9.996e-05,2]
[355969382,1741741838890,-500.0,9.996e-05,2]
[355969383,1741741838899,-500.0,9.996e-05,2]
[355969384,1741741838908,-500.0,9.996e-05,2]
[355969385,1741741838917,-500.0,9.996e-05,2]
[355969386,1741741838927,-500.0,9.996e-05,2]
[355969387,1741741838935,-500.0,9.996e-05,2]
[355969388,1741741838945,-500.0,9.996e-05,2]
[355969389,1741741839188,-500.0,9.996e-05,2]
[355969390,1741741839198,-500.0,9.996e-05,2]
[355969391,1741741839207,-500.0,9.996e-05,2]
[355969392,1741741839217,-500.0,9.996e-05,2]
[355969393,1741741839226,-678.15,9.996e-05,2]
[355969394,1741741839235,-500.0,9.996e-05,2]
[355969395,1741741839245,-519.70719671,9.996e-05,2]
[355969396,1741741839254,-500.0,9.996e-05,2]
[355969397,1741741839264,-500.0,9.996e-05,2]
[355969398,1741741839274,-500.0,9.996e-05,2]
[355969399,1741741839283,-500.0,9.996e-05,2]
[355969400,1741741839293,-500.0,9.996e-05,2]
[355969401,1741741839303,-500.0,9.996e-05,2]
[355969402,1741741839312,-500.0,9.996e-05,2]
[355969403,1741741839324,-500.0,9.996e-05,2]
[355969404,1741741839334,-544.40666794,9.996e-05,2]
[355969405,1741741839344,-500.0,9.996e-05,2]
[355969406,1741741839353,-500.0,9.996e-05,2]
[355969407,1741741839363,-500.0,9.996e-05,2]
[355969408,1741741839372,-500.0,9.996e-05,2]
[355969409,1741741839382,-500.0,9.996e-05,2]
[355969410,1741741839391,-500.0,9.996e-05,2]
[355969411,1741741839400,-500.0,9.996e-05,2]
[355969412,1741741839410,-500.0,9.996e-05,2]
[355969413,1741741839419,-500.0,9.996e-05,2]
[355969414,1741741839429,-500.0,9.996e-05,2]
[355969415,1741741839438,-500.0,9.996e-05,2]
[355969416,1741741839447,-538.5,9.996e-05,2]
[355969417,1741741839456,-500.0,9.996e-05,2]
[355969418,1741741839466,-500.0,9.996e-05,2]
[355969419,1741741839475,-500.0,9.996e-05,2]
[355969420,1741741839484,-510.68,9.996e-05,2]
[355969421,1741741839499,-500.0,9.996e-05,2]
[355969422,1741741839508,-500.0,9.996e-05,2]
[355969423,1741741839517,-500.0,9.996e-05,2]
[355969424,1741741839526,-788.67,9.996e-05,2]
[355969425,1741741839535,-500.0,9.996e-05,2]
[355969426,1741741839544,-624.38,9.996e-05,2]
[355969427,1741741839554,-500.0,9.996e-05,2]
[355969428,1741741839563,-500.0,9.996e-05,2]
[355969429,1741741839573,-814.94,9.996e-05,2]
[355969430,1741741839583,-500.0,9.996e-05,2]
[355969431,1741741839592,-500.0,9.996e-05,2]
[355969432,1741741839602,-500.0,9.996e-05,2]
[355969433,1741741839611,-500.0,9.996e-05,2]
[355969434,1741741839622,-1139.86,9.996e-05,2]
[355969435,1741741839632,-500.0,9.996e-05,2]
[355969436,1741741839641,-500.0,9.996e-05,2]
[355969437,1741741839652,-706.57,9.996e-05,2]
[355969438,1741741839663,-726.96,9.996e-05,2]
[355969439,1741741839672,-500.0,9.996e-05,2]
[355969440,1741741839681,-841.09,9.996e-05,2]
[355969441,1741741839691,-500.0,9.996e-05,2]
[355969442,1741741839700,-573.41,9.996e-05,2]
[355969443,1741741839709,-500.0,9.996e-05,2]
[355969444,1741741839719,-500.0,9.996e-05,2]
[355969445,1741741839728,-496.58377424,9.996e-05,2]
[355969451,1741741840163,-3.41622576,9.996e-05,2]
[355969452,1741741840172,-576.31,9.996e-05,2]
[355969453,1741741840181,-500.0,9.996e-05,2]
[355969454,1741741840190,-500.0,9.996e-05,2]
[355969455,1741741840199,-500.0,9.996e-05,2]
[355969456,1741741840208,-781.4,9.996e-05,2]
[355969457,1741741840217,-760.2,9.996e-05,2]
[355969458,1741741840226,-500.0,9.996e-05,2]
[355969459,1741741840235,-500.0,9.996e-05,2]
[355969460,1741741840244,-500.0,9.996e-05,2]
[355969461,1741741840254,-500.0,9.996e-05,2]
[355969462,1741741840263,-500.0,9.996e-05,2]
[355969463,1741741840271,-500.0,9.996e-05,2]
[355969464,1741741840280,-500.0,9.996e-05,2]
[355969465,1741741840290,-689.0,9.996e-05,2]
[355969466,1741741840299,-592.22,9.996e-05,2]
[355969467,1741741840308,-940.5,9.996e-05,2]
[355969468,1741741840317,-500.0,9.996e-05,2]
[355969469,1741741840327,-500.0,9.996e-05,2]
[355969470,1741741840335,-500.0,9.996e-05,2]
[355969471,1741741840345,-596.61,9.996e-05,2]
[355969472,1741741840353,-500.95,9.996e-05,2]
[355969473,1741741840362,-500.0,9.996e-05,2]
[355969474,1741741840371,-959.39,9.996e-05,2]
[355969475,1741741840381,-6064.00310275,9.997e-05,2]
[355969476,1741741840390,-500.0,9.998e-05,2]
[355969477,1741741840399,-1514.13,9.998e-05,2]
[355969478,1741741840407,-696.43,9.998e-05,2]
[355969479,1741741840416,-500.0,9.998e-05,2]
[355969480,1741741840425,-728.71,9.998e-05,2]
[355969481,1741741840434,-500.0,9.998e-05,2]
[355969482,1741741840443,-500.0,9.998e-05,2]
[355969483,1741741840452,-649.2,9.998e-05,2]
[355969484,1741741840462,-607.93,9.998e-05,2]
[355969485,1741741840471,-601.51,9.998e-05,2]
[355969486,1741741840480,-905.4,9.998e-05,2]
[355969487,1741741840488,-502.83,9.998e-05,2]
[355969488,1741741840497,-500.0,9.998e-05,2]
[355969489,1741741840506,-885.44,9.998e-05,2]
[355969490,1741741840515,-500.0,9.998e-05,2]
[355969491,1741741840524,-500.0,9.998e-05,2]
[355969492,1741741840533,-550.64,9.998e-05,2]
[355969493,1741741840542,-1463.1,9.998e-05,2]
[355969494,1741741840551,-500.0,9.998e-05,2]
[355969495,1741741840561,-732.77,9.998e-05,2]
[355969496,1741741840570,-500.0,9.998e-05,2]
[355969497,1741741840579,-1177.62,9.998e-05,2]
[355969498,1741741840588,-929.17,9.998e-05,2]
[355969499,1741741840597,-700.69,9.998e-05,2]
[355969500,1741741840606,-969.52,9.998e-05,2]
[355969501,1741741840616,-1054.65,9.998e-05,2]
[355969502,1741741840625,-1374.34,9.998e-05,2]
[355969503,1741741840634,-500.0,9.998e-05,2]
[355969504,1741741840644,-500.0,9.998e-05,2]
[355969505,1741741840652,-584.61,9.998e-05,2]
[355969506,1741741840662,-500.0,9.998e-05,2]
[355969507,1741741840671,-500.0,9.998e-05,2]
[355969508,1741741840680,-500.0,9.998e-05,2]
[355969509,1741741840689,-500.0,9.998e-05,2]
[355969510,1741741840698,-500.0,9.998e-05,2]
[355969511,1741741840707,-500.0,9.999e-05,2]
[355969512,1741741840717,-500.0,9.999e-05,2]
[355969513,1741741840726,-500.0,9.999e-05,2]
[355969514,1741741840735,-634.52,9.999e-05,2]
[355969515,1741741840744,-500.0,9.999e-05,2]
[355969516,1741741840753,-500.0,9.999e-05,2]
[355969517,1741741840762,-500.0,9.999e-05,2]
[355969518,1741741840771,-500.0,9.999e-05,2]
[355969519,1741741840780,-541.01,9.999e-05,2]
[355969520,1741741840789,-623.38,9.999e-05,2]
[355969521,1741741840799,-500.0,9.999e-05,2]
[355969522,1741741840808,-734.8,9.999e-05,2]
[355969523,1741741840817,-500.0,9.999e-05,2]
[355969524,1741741840827,-1183.0,9.999e-05,2]
[355969525,1741741840837,-500.0,9.999e-05,2]
[355969526,1741741840846,-500.0,9.999e-05,2]
[355969527,1741741840855,-500.0,9.999e-05,2]
[355969528,1741741840865,-500.0,9.999e-05,2]
[355969529,1741741840874,-500.0,9.999e-05,2]
[355969530,1741741840883,-500.0,9.999e-05,2]
[355969531,1741741840892,-500.0,9.999e-05,2]
[355969532,1741741840902,-778.48,9.999e-05,2]
[355969533,1741741840911,-651.87,9.999e-05,2]
[355969534,1741741840921,-500.0,9.999e-05,2]
[355969535,1741741840930,-538.89,9.999e-05,2]
[355969536,1741741840940,-500.0,9.999e-05,2]
[355969537,1741741840949,-500.0,9.999e-05,2]
[355969538,1741741840958,-500.0,9.999e-05,2]
[355969539,1741741840968,-500.0,9.999e-05,2]
[355969540,1741741840977,-703.24,9.999e-05,2]
[355969541,1741741840987,-500.0,9.999e-05,2]
[355969542,1741741840996,-500.0,9.999e-05,2]
[355969543,1741741841006,-636.29,9.999e-05,2]
[355969544,1741741841015,-667.66,9.999e-05,2]
[355969545,1741741841025,-500.0,9.999e-05,2]
[355969546,1741741841034,-616.12404906,9.999e-05,2]
[355969547,1741741841044,-617.81,9.999e-05,2]
[355969548,1741741841054,-630.88,9.999e-05,2]
[355969549,1741741841063,-500.0,9.999e-05,2]
[355969550,1741741841073,-500.0,9.999e-05,2]
[355969551,1741741841084,-500.0,9.999e-05,2]
[355969552,1741741841096,-671.62,9.999e-05,2]
[355969553,1741741841106,-500.0,9.999e-05,2]
[355969554,1741741841115,-564.83,9.999e-05,2]
[355969555,1741741841125,-500.0,9.999e-05,2]
[355969556,1741741841134,-594.62833109,9.999e-05,2]
[355969557,1741741841143,-500.0,9.999e-05,2]
[355969558,1741741841153,-500.0,9.999e-05,2]
[355969559,1741741841162,-863.84,9.999e-05,2]
[355969560,1741741841173,-500.0,9.999e-05,2]
[355969561,1741741841183,-500.0,9.999e-05,2]
[355969562,1741741841193,-500.0,9.999e-05,2]
[355969563,1741741841202,-794.28,9.999e-05,2]
[355969564,1741741841212,-500.0,9.999e-05,2]
[355969565,1741741841222,-500.0,9.999e-05,2]
[355969566,1741741841232,-500.0,9.999e-05,2]
[355969567,1741741841245,-500.0,9.999e-05,2]
[355969568,1741741841255,-692.04,9.999e-05,2]
[355969569,1741741841265,-1283.88,9.999e-05,2]
[355969570,1741741841274,-500.0,9.999e-05,2]
[355969571,1741741841283,-500.0,9.999e-05,2]
[355969572,1741741841293,-500.0,9.999e-05,2]
[355969573,1741741841302,-500.0,9.999e-05,2]
[355969574,1741741841311,-500.0,9.999e-05,2]
[355969575,1741741841321,-500.0,9.999e-05,2]
[355969576,1741741841330,-500.0,9.999e-05,2]
[355969577,1741741841339,-613.58,9.999e-05,2]
[355969578,1741741841350,-774.69,9.999e-05,2]
[355969579,1741741841359,-500.0,9.999e-05,2]
[355969580,1741741841369,-261.65136104,9.999e-05,2]
[355969581,1741741841378,-500.0,9.999e-05,2]
[355969582,1741741841388,-500.0,9.999e-05,2]
[355969583,1741741841397,-500.0,9.999e-05,2]
[355969584,1741741841406,-500.0,9.999e-05,2]
[355969585,1741741841416,-677.98,9.999e-05,2]
[355969586,1741741841425,-500.0,9.999e-05,2]
[355969587,1741741841435,-500.0,9.999e-05,2]
[355969588,1741741841444,-506.53,9.999e-05,2]
[355969589,1741741841454,-353.71760781,9.999e-05,2]
[355969590,1741741841463,-500.0,9.999e-05,2]
[355969591,1741741841472,-500.0,9.999e-05,2]
[355969592,1741741841482,-500.0,9.999e-05,2]
[355969593,1741741841491,-751.28,9.999e-05,2]
[355969594,1741741841500,-500.0,9.999e-05,2]
[355969595,1741741841510,-500.0,9.999e-05,2]
[355969596,1741741841519,-650.65,9.999e-05,2]
[355969597,1741741841528,-500.0,9.999e-05,2]
[355969598,1741741841538,-500.0,9.999e-05,2]
[355969599,1741741841547,-680.15,9.999e-05,2]
[355969600,1741741841557,-500.0,9.999e-05,2]
[355969601,1741741841566,-500.0,9.999e-05,2]
[355969602,1741741841575,-500.0,9.999e-05,2]
[355969603,1741741841585,-500.0,9.999e-05,2]
[355969604,1741741841594,-500.0,9.999e-05,2]
[355969605,1741741841603,-500.0,9.999e-05,2]
[355969606,1741741841612,-500.0,9.999e-05,2]
[355969607,1741741841621,-500.0,9.999e-05,2]
[355969608,1741741841631,-644.05,9.999e-05,2]
[355969609,1741741841639,-500.0,9.999e-05,2]
[355969610,1741741841649,-500.0,9.999e-05,2]